[Event "Late-Titled-Tuesday-Blitz-February-06-2024"]
[Site "Chess.com"]
[Date "2024.02.06"]
[Round "1"]
[White "bitter-cikolata"]
[Black "K_A_S_T_O_R"]
[Result "0-1"]
[WhiteElo "2481"]
[BlackElo "2897"]
[TimeControl "180+1"]
[EndTime "14:06:17 PST"]
[Termination "K_A_S_T_O_R won by resignation"]

1. e4 {[%clk 0:03:00.9]} 1... c5 {[%clk 0:02:59.4]} 2. Nf3 {[%clk 0:03:01]} 2...
d6 {[%clk 0:02:57.4]} 3. d4 {[%clk 0:03:01.5]} 3... cxd4 {[%clk 0:02:57.1]} 4.
Nxd4 {[%clk 0:03:02.4]} 4... Nf6 {[%clk 0:02:57.4]} 5. Nc3 {[%clk 0:03:03]} 5...
a6 {[%clk 0:02:58]} 6. Bg5 {[%clk 0:03:02.3]} 6... e6 {[%clk 0:02:57.9]} 7. f4
{[%clk 0:02:59.5]} 7... Nbd7 {[%clk 0:02:57.3]} 8. Qf3 {[%clk 0:02:57.6]} 8...
Qc7 {[%clk 0:02:57.2]} 9. O-O-O {[%clk 0:02:56.6]} 9... b5 {[%clk 0:02:57.6]}
10. g4 {[%clk 0:02:54.7]} 10... b4 {[%clk 0:02:56.5]} 11. Nb1 {[%clk 0:02:50.6]}
11... Bb7 {[%clk 0:02:56.3]} 12. Nd2 {[%clk 0:02:51]} 12... Be7 {[%clk
0:02:54.1]} 13. Bxf6 {[%clk 0:02:48.7]} 13... Bxf6 {[%clk 0:02:53.7]} 14. N4b3
{[%clk 0:02:27]} 14... d5 {[%clk 0:02:43.4]} 15. g5 {[%clk 0:02:20.4]} 15... Be7
{[%clk 0:02:36.1]} 16. f5 {[%clk 0:01:52.7]} 16... exf5 {[%clk 0:02:15.9]} 17.
exd5 {[%clk 0:01:42.9]} 17... g6 {[%clk 0:02:09.1]} 18. h4 {[%clk 0:01:17.9]}
18... O-O-O {[%clk 0:01:58.1]} 19. Nc4 {[%clk 0:01:15.9]} 19... Nb6 {[%clk
0:01:43.8]} 20. Nxb6+ {[%clk 0:01:06.8]} 20... Qxb6 {[%clk 0:01:43.7]} 21. Bg2
{[%clk 0:01:06.1]} 21... Bc5 {[%clk 0:01:32.1]} 22. Rhe1 {[%clk 0:01:01.6]}
22... Rhe8 {[%clk 0:01:28.8]} 23. Qd3 {[%clk 0:00:59.9]} 23... Be3+ {[%clk
0:01:26.5]} 24. Kb1 {[%clk 0:00:59.6]} 24... f4 {[%clk 0:01:26.9]} 25. Be4
{[%clk 0:00:52.6]} 25... Kb8 {[%clk 0:01:25.6]} 26. Nd2 {[%clk 0:00:49.8]} 26...
Qd4 {[%clk 0:01:22.8]} 27. Qxd4 {[%clk 0:00:36.1]} 27... Bxd4 {[%clk 0:01:22.4]}
28. Nc4 {[%clk 0:00:34.1]} 28... Bf2 {[%clk 0:01:18]} 29. Re2 {[%clk 0:00:32.8]}
29... Bxh4 {[%clk 0:01:17.5]} 30. Rh1 {[%clk 0:00:22.8]} 30... Bxd5 {[%clk
0:01:02.1]} 31. Rxh4 {[%clk 0:00:20.2]} 31... Bxc4 {[%clk 0:01:02.1]} 32. Bd3
{[%clk 0:00:12.8]} 32... Rxe2 {[%clk 0:01:00.6]} 0-1

[Event "Late-Titled-Tuesday-Blitz-February-06-2024"]
[Site "Chess.com"]
[Date "2024.02.06"]
[Round "1"]
[White "grzechu96"]
[Black "Jamal-Jamal-Jamal"]
[Result "1-0"]
[WhiteElo "2725"]
[BlackElo "2384"]
[TimeControl "180+1"]
[EndTime "14:06:17 PST"]
[Termination "grzechu96 won by resignation"]

1. e4 {[%clk 0:03:00.9]} 1... c5 {[%clk 0:02:54.3]} 2. Nf3 {[%clk 0:03:00.7]}
2... Nc6 {[%clk 0:02:53]} 3. Bb5 {[%clk 0:03:00.5]} 3... Qc7 {[%clk 0:02:51.9]}
4. O-O {[%clk 0:02:59.6]} 4... a6 {[%clk 0:02:48.1]} 5. Bxc6 {[%clk 0:02:59.3]}
5... dxc6 {[%clk 0:02:49]} 6. d3 {[%clk 0:02:56.3]} 6... e5 {[%clk 0:02:48.7]}
7. h3 {[%clk 0:02:52.4]} 7... Ne7 {[%clk 0:02:46.9]} 8. a4 {[%clk 0:02:52.9]}
8... a5 {[%clk 0:02:46.6]} 9. Be3 {[%clk 0:02:52.4]} 9... Ng6 {[%clk 0:02:46.5]}
10. Na3 {[%clk 0:02:28.5]} 10... Be7 {[%clk 0:02:37.8]} 11. Qd2 {[%clk
0:02:25.3]} 11... O-O {[%clk 0:02:34.8]} 12. Nc4 {[%clk 0:02:21.6]} 12... Be6
{[%clk 0:02:32.5]} 13. Qc3 {[%clk 0:02:20.8]} 13... Bxc4 {[%clk 0:02:22.5]} 14.
Qxc4 {[%clk 0:02:20.5]} 14... b6 {[%clk 0:02:22.8]} 15. Nd2 {[%clk 0:02:08.7]}
15... Rad8 {[%clk 0:02:17.1]} 16. Qb3 {[%clk 0:02:05.9]} 16... Kh8 {[%clk
0:01:58.4]} 17. Nc4 {[%clk 0:02:05.2]} 17... Rb8 {[%clk 0:01:58.4]} 18. Rae1
{[%clk 0:02:02.4]} 18... b5 {[%clk 0:01:50]} 19. Nd2 {[%clk 0:02:01.2]} 19...
Qd7 {[%clk 0:01:37.2]} 20. Qa2 {[%clk 0:01:56.8]} 20... Qe6 {[%clk 0:01:35.6]}
21. Qxe6 {[%clk 0:01:55.6]} 21... fxe6 {[%clk 0:01:36.5]} 22. Ra1 {[%clk
0:01:51.7]} 22... Nf4 {[%clk 0:01:29.3]} 23. axb5 {[%clk 0:01:46.9]} 23... Rxb5
{[%clk 0:01:25.9]} 24. Nc4 {[%clk 0:01:47.2]} 24... Rfb8 {[%clk 0:01:19.2]} 25.
b3 {[%clk 0:01:43.5]} 25... Bd8 {[%clk 0:01:09.6]} 26. Rfe1 {[%clk 0:01:31.4]}
26... Ng6 {[%clk 0:01:06.2]} 27. Bd2 {[%clk 0:01:31.3]} 27... Ra8 {[%clk
0:00:58.1]} 28. Ra4 {[%clk 0:01:30.6]} 28... Bc7 {[%clk 0:00:22.4]} 29. Rea1
{[%clk 0:01:30.4]} 29... Nf4 {[%clk 0:00:22.5]} 30. Kf1 {[%clk 0:01:24.3]} 30...
Kg8 {[%clk 0:00:20.3]} 31. h4 {[%clk 0:01:21.8]} 31... Kf7 {[%clk 0:00:20.1]}
32. g3 {[%clk 0:01:22]} 32... Nh5 {[%clk 0:00:18]} 33. Bxa5 {[%clk 0:01:21.2]}
33... Bxa5 {[%clk 0:00:17.5]} 34. Nxa5 {[%clk 0:01:21]} 34... g5 {[%clk
0:00:15.3]} 35. hxg5 {[%clk 0:01:16.5]} 35... Kg6 {[%clk 0:00:14.1]} 36. Nxc6
{[%clk 0:01:16.7]} 36... Rxa4 {[%clk 0:00:13.5]} 37. Nxe5+ {[%clk 0:01:11.5]}
37... Kxg5 {[%clk 0:00:12.9]} 38. Rxa4 {[%clk 0:01:11.8]} 1-0

[Event "Late-Titled-Tuesday-Blitz-February-06-2024"]
[Site "Chess.com"]
[Date "2024.02.06"]
[Round "1"]
[White "DreamsAreFake"]
[Black "picturesquecheck"]
[Result "1/2-1/2"]
[WhiteElo "2718"]
[BlackElo "2397"]
[TimeControl "180+1"]
[EndTime "14:06:18 PST"]
[Termination "Game drawn by repetition"]

1. Nf3 {[%clk 0:03:00.3]} 1... d6 {[%clk 0:02:58.3]} 2. g3 {[%clk 0:02:59.2]}
2... Nf6 {[%clk 0:02:58.3]} 3. c3 {[%clk 0:02:55.3]} 3... g6 {[%clk 0:02:58.7]}
4. Na3 {[%clk 0:02:52.6]} 4... Bg7 {[%clk 0:02:59.6]} 5. Nc2 {[%clk 0:02:52.9]}
5... O-O {[%clk 0:02:58.2]} 6. Bg2 {[%clk 0:02:53.7]} 6... c5 {[%clk 0:02:56.4]}
7. O-O {[%clk 0:02:54.3]} 7... Nc6 {[%clk 0:02:55.7]} 8. d3 {[%clk 0:02:54]}
8... Bg4 {[%clk 0:02:54.8]} 9. h3 {[%clk 0:02:53.1]} 9... Bd7 {[%clk 0:02:54.5]}
10. e4 {[%clk 0:02:52.8]} 10... e5 {[%clk 0:02:53.3]} 11. Qe2 {[%clk 0:02:50.5]}
11... Qc8 {[%clk 0:02:53.4]} 12. Kh2 {[%clk 0:02:49.8]} 12... h6 {[%clk
0:02:52.1]} 13. Ne3 {[%clk 0:02:48.1]} 13... Be6 {[%clk 0:02:50.1]} 14. Nd2
{[%clk 0:02:47.6]} 14... Nh5 {[%clk 0:02:30.7]} 15. Ndc4 {[%clk 0:02:41.1]}
15... Qd7 {[%clk 0:02:23]} 16. a4 {[%clk 0:02:41.7]} 16... b6 {[%clk 0:02:02.9]}
17. f4 {[%clk 0:02:40.8]} 17... exf4 {[%clk 0:01:55.1]} 18. gxf4 {[%clk
0:02:41.7]} 18... Rae8 {[%clk 0:01:45.8]} 19. f5 {[%clk 0:02:30.7]} 19... Bxc4
{[%clk 0:01:44.8]} 20. Nxc4 {[%clk 0:02:31.6]} 20... d5 {[%clk 0:01:39.8]} 21.
Ne3 {[%clk 0:02:27.1]} 21... Qc7+ {[%clk 0:01:34.2]} 22. Kg1 {[%clk 0:02:26]}
22... Ng3 {[%clk 0:01:32.2]} 23. Qf2 {[%clk 0:02:22.7]} 23... Nxf1 {[%clk
0:01:27.8]} 24. Qxf1 {[%clk 0:02:23.6]} 24... dxe4 {[%clk 0:01:26.9]} 25. f6
{[%clk 0:02:21.5]} 25... Bh8 {[%clk 0:01:14.8]} 26. Nd5 {[%clk 0:02:21.3]} 26...
Qg3 {[%clk 0:00:52]} 27. Bxh6 {[%clk 0:02:08.2]} 27... Qxd3 {[%clk 0:00:51.5]}
28. Qxd3 {[%clk 0:01:59.5]} 28... exd3 {[%clk 0:00:51.9]} 29. Rd1 {[%clk
0:01:59.9]} 29... Ne5 {[%clk 0:00:49.2]} 30. Bxf8 {[%clk 0:01:53.1]} 30... Kxf8
{[%clk 0:00:49.2]} 31. Be4 {[%clk 0:01:51]} 31... Re6 {[%clk 0:00:49]} 32. Bxd3
{[%clk 0:01:49.4]} 32... Nxd3 {[%clk 0:00:49.2]} 33. Rxd3 {[%clk 0:01:49.4]}
33... Bxf6 {[%clk 0:00:49.9]} 34. Kf2 {[%clk 0:01:44.3]} 34... Kg7 {[%clk
0:00:48.9]} 35. Nc7 {[%clk 0:01:43.8]} 35... Rc6 {[%clk 0:00:41.8]} 36. Na6
{[%clk 0:01:39.3]} 36... Re6 {[%clk 0:00:36.7]} 37. Nb8 {[%clk 0:01:36.1]} 37...
Re4 {[%clk 0:00:34.5]} 38. Nc6 {[%clk 0:01:34.6]} 38... Rxa4 {[%clk 0:00:33.1]}
39. Rd7 {[%clk 0:01:35.3]} 39... Ra2 {[%clk 0:00:31.5]} 40. Kf3 {[%clk
0:01:30.9]} 40... Rxb2 {[%clk 0:00:31.5]} 41. Rb7 {[%clk 0:01:31.5]} 41... Bxc3
{[%clk 0:00:30.6]} 42. Nd8 {[%clk 0:01:31.8]} 42... Bd4 {[%clk 0:00:29.4]} 43.
Rxf7+ {[%clk 0:01:32.3]} 43... Kh6 {[%clk 0:00:29.7]} 44. Rxa7 {[%clk 0:01:33]}
44... Rf2+ {[%clk 0:00:26.8]} 45. Kg4 {[%clk 0:01:33.5]} 45... Rg2+ {[%clk
0:00:26.5]} 46. Kf3 {[%clk 0:01:34]} 46... Rf2+ {[%clk 0:00:24.1]} 47. Kg4
{[%clk 0:01:34.3]} 47... Rg2+ {[%clk 0:00:12.3]} 48. Kf3 {[%clk 0:01:34.3]}
48... Rf2+ {[%clk 0:00:10.9]} 1/2-1/2

[Event "Late-Titled-Tuesday-Blitz-February-06-2024"]
[Site "Chess.com"]
[Date "2024.02.06"]
[Round "1"]
[White "betta2004"]
[Black "lachesisQ"]
[Result "1-0"]
[WhiteElo "2538"]
[BlackElo "3072"]
[TimeControl "180+1"]
[EndTime "14:06:19 PST"]
[Termination "betta2004 won by resignation"]

1. e4 {[%clk 0:02:58.6]} 1... e6 {[%clk 0:02:58.1]} 2. d4 {[%clk 0:02:53.9]}
2... d5 {[%clk 0:02:58.4]} 3. Bd3 {[%clk 0:02:54]} 3... dxe4 {[%clk 0:02:54.9]}
4. Bxe4 {[%clk 0:02:54.9]} 4... Nf6 {[%clk 0:02:54.8]} 5. Bf3 {[%clk 0:02:55.5]}
5... Nbd7 {[%clk 0:02:54.5]} 6. Nc3 {[%clk 0:02:50.5]} 6... Bd6 {[%clk
0:02:47.7]} 7. Nge2 {[%clk 0:02:49.1]} 7... O-O {[%clk 0:02:47.5]} 8. O-O {[%clk
0:02:47.2]} 8... c6 {[%clk 0:02:46.3]} 9. Bg5 {[%clk 0:02:47.3]} 9... Qc7 {[%clk
0:02:43.5]} 10. h3 {[%clk 0:02:47]} 10... h6 {[%clk 0:02:39.8]} 11. Bxf6 {[%clk
0:02:45.7]} 11... Nxf6 {[%clk 0:02:40.7]} 12. Ne4 {[%clk 0:02:46.2]} 12... Nxe4
{[%clk 0:02:38.7]} 13. Bxe4 {[%clk 0:02:47.1]} 13... e5 {[%clk 0:02:38.9]} 14.
dxe5 {[%clk 0:02:41.1]} 14... Bxe5 {[%clk 0:02:39.8]} 15. c3 {[%clk 0:02:41.7]}
15... Re8 {[%clk 0:02:02.2]} 16. Bc2 {[%clk 0:02:33.1]} 16... Be6 {[%clk
0:01:50.5]} 17. Nd4 {[%clk 0:02:29.4]} 17... Bc4 {[%clk 0:01:46.2]} 18. Re1
{[%clk 0:02:27.2]} 18... Rad8 {[%clk 0:01:45.8]} 19. Qg4 {[%clk 0:02:26]} 19...
Bxd4 {[%clk 0:01:39.2]} 20. Rxe8+ {[%clk 0:02:24.3]} 20... Rxe8 {[%clk
0:01:40.1]} 21. Qxd4 {[%clk 0:02:24.7]} 21... Bd5 {[%clk 0:01:33.7]} 22. c4
{[%clk 0:02:19.4]} 22... Be6 {[%clk 0:01:32.2]} 23. Re1 {[%clk 0:02:14.7]} 23...
Qd8 {[%clk 0:01:14]} 24. Qe4 {[%clk 0:02:03]} 24... g6 {[%clk 0:01:02.7]} 25.
Qf4 {[%clk 0:02:01.9]} 25... h5 {[%clk 0:01:00]} 26. Re5 {[%clk 0:01:49.8]}
26... Kg7 {[%clk 0:00:56.1]} 27. Qe3 {[%clk 0:01:42]} 27... Qf6 {[%clk
0:00:55.1]} 28. f4 {[%clk 0:01:28.2]} 28... Rd8 {[%clk 0:00:54.4]} 29. b3 {[%clk
0:01:22.7]} 29... h4 {[%clk 0:00:53.5]} 30. Kh2 {[%clk 0:01:18.8]} 30... b6
{[%clk 0:00:52]} 31. Rg5 {[%clk 0:01:15.9]} 31... Qd4 {[%clk 0:00:43.2]} 32.
Qxd4+ {[%clk 0:01:07.4]} 32... Rxd4 {[%clk 0:00:44.1]} 33. f5 {[%clk 0:01:07.8]}
33... Kf6 {[%clk 0:00:44.4]} 34. fxe6 {[%clk 0:01:08.3]} 34... Kxg5 {[%clk
0:00:44.1]} 35. e7 {[%clk 0:01:07.6]} 35... Rd2 {[%clk 0:00:37.5]} 36. e8=Q
{[%clk 0:01:06.5]} 36... Rxc2 {[%clk 0:00:37.9]} 37. Qxf7 {[%clk 0:01:03.8]}
37... Rxa2 {[%clk 0:00:35.7]} 38. Qe7+ {[%clk 0:01:03]} 38... Kh5 {[%clk
0:00:35.7]} 39. Qe5+ {[%clk 0:01:01.6]} 39... Kh6 {[%clk 0:00:35.6]} 40. Qf4+
{[%clk 0:01:00.7]} 40... Kg7 {[%clk 0:00:35.6]} 41. Qxh4 {[%clk 0:00:59.4]}
41... c5 {[%clk 0:00:35.9]} 42. Qe7+ {[%clk 0:00:59.5]} 42... Kh6 {[%clk
0:00:35.5]} 43. h4 {[%clk 0:00:59.4]} 1-0

[Event "Late-Titled-Tuesday-Blitz-February-06-2024"]
[Site "Chess.com"]
[Date "2024.02.06"]
[Round "1"]
[White "FredddieCroderg"]
[Black "The_Machine04"]
[Result "0-1"]
[WhiteElo "2388"]
[BlackElo "2725"]
[TimeControl "180+1"]
[EndTime "14:06:19 PST"]
[Termination "The_Machine04 won by resignation"]

1. d4 {[%clk 0:02:59.3]} 1... d6 {[%clk 0:02:56.2]} 2. Nf3 {[%clk 0:02:54.8]}
2... Nf6 {[%clk 0:02:55.8]} 3. c4 {[%clk 0:02:50.3]} 3... g6 {[%clk 0:02:55.1]}
4. Nc3 {[%clk 0:02:47.8]} 4... Bf5 {[%clk 0:02:54.7]} 5. Ng5 {[%clk 0:02:45.9]}
5... Bg7 {[%clk 0:02:50.8]} 6. e4 {[%clk 0:02:44.5]} 6... Bg4 {[%clk 0:02:51.1]}
7. Be2 {[%clk 0:02:36.2]} 7... Bxe2 {[%clk 0:02:49.9]} 8. Qxe2 {[%clk
0:02:34.2]} 8... Nc6 {[%clk 0:02:46]} 9. Be3 {[%clk 0:02:27.9]} 9... e5 {[%clk
0:02:45.6]} 10. d5 {[%clk 0:02:26.6]} 10... Nd4 {[%clk 0:02:45.2]} 11. Qd2
{[%clk 0:02:25.8]} 11... h6 {[%clk 0:02:42.6]} 12. Nf3 {[%clk 0:02:21.8]} 12...
Nxf3+ {[%clk 0:02:42.1]} 13. gxf3 {[%clk 0:02:21.6]} 13... Nh5 {[%clk 0:02:41]}
14. O-O-O {[%clk 0:02:19.3]} 14... Qf6 {[%clk 0:02:35.6]} 15. Nb5 {[%clk
0:02:10.1]} 15... Qe7 {[%clk 0:02:31.3]} 16. c5 {[%clk 0:02:06.4]} 16... a6
{[%clk 0:02:29.6]} 17. cxd6 {[%clk 0:02:05.5]} 17... cxd6 {[%clk 0:02:29.2]} 18.
Nc3 {[%clk 0:02:02.2]} 18... Qf6 {[%clk 0:02:24.4]} 19. Qe2 {[%clk 0:01:56.3]}
19... Nf4 {[%clk 0:02:22.8]} 20. Bxf4 {[%clk 0:01:52.9]} 20... Qxf4+ {[%clk
0:02:23.7]} 21. Kb1 {[%clk 0:01:51.3]} 21... O-O {[%clk 0:02:23.3]} 22. Rhg1
{[%clk 0:01:46.7]} 22... Qxh2 {[%clk 0:02:18.8]} 23. Rg3 {[%clk 0:01:45.6]}
23... Qh4 {[%clk 0:02:18]} 24. Rdg1 {[%clk 0:01:42.9]} 24... b5 {[%clk
0:02:17.6]} 25. Qf1 {[%clk 0:01:36.8]} 25... Rac8 {[%clk 0:02:13.7]} 26. Rh3
{[%clk 0:01:36.1]} 26... Qf4 {[%clk 0:02:08.8]} 27. Qe2 {[%clk 0:01:28]} 27...
Rc7 {[%clk 0:02:02.5]} 28. Rg4 {[%clk 0:01:25.8]} 28... Qf6 {[%clk 0:02:01.9]}
29. Rgh4 {[%clk 0:01:17.1]} 29... h5 {[%clk 0:01:57.7]} 30. Qe3 {[%clk
0:01:10.9]} 30... Rfc8 {[%clk 0:01:50.9]} 31. a3 {[%clk 0:01:06.2]} 31... Rc5
{[%clk 0:01:47.7]} 32. Na2 {[%clk 0:00:57.7]} 32... a5 {[%clk 0:01:42.4]} 33.
Nc3 {[%clk 0:00:53.1]} 33... Qe7 {[%clk 0:01:41.3]} 34. Rh1 {[%clk 0:00:47.9]}
34... Bf6 {[%clk 0:01:39.4]} 35. R4h2 {[%clk 0:00:45.8]} 35... Bg5 {[%clk
0:01:39.4]} 36. Qe2 {[%clk 0:00:40.3]} 36... b4 {[%clk 0:01:39.1]} 37. Na4
{[%clk 0:00:39.7]} 37... Rc1+ {[%clk 0:01:37.1]} 38. Rxc1 {[%clk 0:00:35.9]}
38... Rxc1+ {[%clk 0:01:38]} 39. Ka2 {[%clk 0:00:35.4]} 39... Bf4 {[%clk
0:01:34]} 40. Rg2 {[%clk 0:00:32.2]} 40... Qb7 {[%clk 0:01:27.3]} 41. Qd3 {[%clk
0:00:26.1]} 41... h4 {[%clk 0:01:18]} 42. Rg4 {[%clk 0:00:13.4]} 42... b3+
{[%clk 0:01:17.3]} 0-1

[Event "Late-Titled-Tuesday-Blitz-February-06-2024"]
[Site "Chess.com"]
[Date "2024.02.06"]
[Round "1"]
[White "TimGrutter03"]
[Black "JaackCamel"]
[Result "1-0"]
[WhiteElo "2585"]
[BlackElo "2192"]
[TimeControl "180+1"]
[EndTime "14:06:19 PST"]
[Termination "TimGrutter03 won on time"]

1. c4 {[%clk 0:02:59.9]} 1... e6 {[%clk 0:02:59.7]} 2. Nf3 {[%clk 0:02:58.7]}
2... d5 {[%clk 0:02:59.4]} 3. g3 {[%clk 0:02:57.7]} 3... c6 {[%clk 0:02:59.1]}
4. Bg2 {[%clk 0:02:56.8]} 4... dxc4 {[%clk 0:02:59.1]} 5. a4 {[%clk 0:02:56.1]}
5... Nf6 {[%clk 0:02:48.3]} 6. O-O {[%clk 0:02:54.6]} 6... Nbd7 {[%clk
0:02:45.5]} 7. Qc2 {[%clk 0:02:49.8]} 7... Be7 {[%clk 0:02:41.9]} 8. Qxc4 {[%clk
0:02:48.2]} 8... O-O {[%clk 0:02:41.3]} 9. b3 {[%clk 0:02:46.3]} 9... Nd5 {[%clk
0:02:34.1]} 10. Bb2 {[%clk 0:02:34.5]} 10... Bf6 {[%clk 0:02:33.5]} 11. d4
{[%clk 0:02:29.9]} 11... a5 {[%clk 0:02:16.4]} 12. e4 {[%clk 0:02:28.6]} 12...
Nb4 {[%clk 0:02:16]} 13. e5 {[%clk 0:02:28.8]} 13... Be7 {[%clk 0:02:14.5]} 14.
Nc3 {[%clk 0:02:25.6]} 14... Nb6 {[%clk 0:02:14.1]} 15. Qe2 {[%clk 0:02:25.5]}
15... c5 {[%clk 0:02:00.8]} 16. dxc5 {[%clk 0:02:21.5]} 16... Bxc5 {[%clk
0:01:59]} 17. Ne4 {[%clk 0:02:21.2]} 17... Qe7 {[%clk 0:01:55]} 18. Rac1 {[%clk
0:02:19]} 18... Nd7 {[%clk 0:01:48.5]} 19. Rfd1 {[%clk 0:02:15.1]} 19... b6
{[%clk 0:01:45.6]} 20. Nfg5 {[%clk 0:02:00.6]} 20... Ba6 {[%clk 0:01:40.3]} 21.
Qh5 {[%clk 0:01:50.4]} 21... h6 {[%clk 0:01:37.4]} 22. Rxd7 {[%clk 0:01:05.2]}
22... Qxd7 {[%clk 0:01:32.4]} 23. Nf6+ {[%clk 0:01:05.2]} 23... gxf6 {[%clk
0:01:25.8]} 24. exf6 {[%clk 0:01:05.1]} 24... Qd3 {[%clk 0:01:09.2]} 25. Be4
{[%clk 0:01:01.3]} 25... Qd2 {[%clk 0:01:03.4]} 26. Qxh6 {[%clk 0:00:47.8]} 1-0

[Event "Late-Titled-Tuesday-Blitz-February-06-2024"]
[Site "Chess.com"]
[Date "2024.02.06"]
[Round "1"]
[White "RantomOpening"]
[Black "HansOnTwitch"]
[Result "0-1"]
[WhiteElo "2531"]
[BlackElo "3162"]
[TimeControl "180+1"]
[EndTime "14:06:21 PST"]
[Termination "HansOnTwitch won by resignation"]

1. c4 {[%clk 0:03:00]} 1... e5 {[%clk 0:02:58]} 2. Nc3 {[%clk 0:03:00.1]} 2...
Nf6 {[%clk 0:02:57.5]} 3. Nf3 {[%clk 0:03:00.4]} 3... Nc6 {[%clk 0:02:57.6]} 4.
e3 {[%clk 0:02:59.2]} 4... Bb4 {[%clk 0:02:57]} 5. Qc2 {[%clk 0:02:58.9]} 5...
Bxc3 {[%clk 0:02:57]} 6. Qxc3 {[%clk 0:02:57.6]} 6... Qe7 {[%clk 0:02:57.1]} 7.
b3 {[%clk 0:02:57.7]} 7... d5 {[%clk 0:02:50.9]} 8. d4 {[%clk 0:02:57.3]} 8...
e4 {[%clk 0:02:40.4]} 9. Ne5 {[%clk 0:02:56.3]} 9... Bd7 {[%clk 0:02:19.4]} 10.
a4 {[%clk 0:02:39.3]} 10... Qb4 {[%clk 0:02:03.2]} 11. Qxb4 {[%clk 0:02:35.2]}
11... Nxb4 {[%clk 0:02:04.1]} 12. Nxd7 {[%clk 0:02:24.6]} 12... Kxd7 {[%clk
0:01:42.8]} 13. Kd2 {[%clk 0:02:24.5]} 13... a5 {[%clk 0:01:38.4]} 14. Ba3
{[%clk 0:02:23.8]} 14... c6 {[%clk 0:01:26.9]} 15. Bxb4 {[%clk 0:02:18.5]} 15...
axb4 {[%clk 0:01:26.9]} 16. cxd5 {[%clk 0:02:19]} 16... Nxd5 {[%clk 0:01:25.4]}
17. Bc4 {[%clk 0:02:18.8]} 17... Nc3 {[%clk 0:01:25.4]} 18. a5 {[%clk
0:02:07.9]} 18... Ra7 {[%clk 0:01:20.4]} 19. f3 {[%clk 0:01:31.9]} 19... exf3
{[%clk 0:01:04]} 20. gxf3 {[%clk 0:01:30.3]} 20... f6 {[%clk 0:01:04.4]} 21.
Rhg1 {[%clk 0:01:28.3]} 21... g6 {[%clk 0:01:04]} 22. h4 {[%clk 0:01:28.1]}
22... Rha8 {[%clk 0:01:03.4]} 23. h5 {[%clk 0:01:28.3]} 23... g5 {[%clk
0:01:02.8]} 24. h6 {[%clk 0:01:14.2]} 24... Rxa5 {[%clk 0:01:02.4]} 25. Rxa5
{[%clk 0:01:14.6]} 25... Rxa5 {[%clk 0:01:03.1]} 26. Bd3 {[%clk 0:01:15.3]}
26... Ra2+ {[%clk 0:01:03]} 27. Ke1 {[%clk 0:01:15.8]} 27... Rh2 {[%clk
0:01:02]} 28. Bxh7 {[%clk 0:01:15.1]} 28... Rxh6 {[%clk 0:01:01.5]} 29. Bf5+
{[%clk 0:01:15.4]} 29... Kd6 {[%clk 0:01:02.1]} 30. Kd2 {[%clk 0:01:12.8]} 30...
Rh2+ {[%clk 0:00:58.3]} 31. Kd3 {[%clk 0:01:12.6]} 31... Rb2 {[%clk 0:00:55.3]}
32. Kc4 {[%clk 0:00:57.6]} 32... Nd5 {[%clk 0:00:54.7]} 33. e4 {[%clk
0:00:21.5]} 33... b5+ {[%clk 0:00:54.6]} 34. Kd3 {[%clk 0:00:21.1]} 34... Nf4+
{[%clk 0:00:55.2]} 0-1

[Event "Late-Titled-Tuesday-Blitz-February-06-2024"]
[Site "Chess.com"]
[Date "2024.02.06"]
[Round "1"]
[White "balachess2006"]
[Black "Evhen_Taranenko"]
[Result "0-1"]
[WhiteElo "2696"]
[BlackElo "2394"]
[TimeControl "180+1"]
[EndTime "14:06:21 PST"]
[Termination "Evhen_Taranenko won by resignation"]

1. e4 {[%clk 0:02:49.4]} 1... c5 {[%clk 0:02:57.2]} 2. Nc3 {[%clk 0:02:49.4]}
2... Nc6 {[%clk 0:02:57.5]} 3. f4 {[%clk 0:02:49.1]} 3... e6 {[%clk 0:02:56.6]}
4. g3 {[%clk 0:02:48.5]} 4... h5 {[%clk 0:02:54.7]} 5. Nf3 {[%clk 0:02:48.3]}
5... d5 {[%clk 0:02:51.9]} 6. Bg2 {[%clk 0:02:44.6]} 6... h4 {[%clk 0:02:48.5]}
7. O-O {[%clk 0:02:41.4]} 7... hxg3 {[%clk 0:02:42]} 8. hxg3 {[%clk 0:02:42.3]}
8... d4 {[%clk 0:02:42.9]} 9. Ne2 {[%clk 0:02:41.2]} 9... d3 {[%clk 0:02:35.1]}
10. cxd3 {[%clk 0:02:41.3]} 10... Qxd3 {[%clk 0:02:33.7]} 11. Ne5 {[%clk
0:02:31.5]} 11... Nxe5 {[%clk 0:02:31.6]} 12. fxe5 {[%clk 0:02:32.4]} 12... c4
{[%clk 0:02:31]} 13. Rf3 {[%clk 0:02:28.5]} 13... Qxe4 {[%clk 0:02:27.2]} 14.
Nc3 {[%clk 0:02:26.8]} 14... Bc5+ {[%clk 0:02:23.3]} 15. Kf1 {[%clk 0:02:26.6]}
15... Qd4 {[%clk 0:02:16.2]} 16. Ne2 {[%clk 0:02:23.6]} 16... Qxe5 {[%clk
0:02:09.9]} 17. d4 {[%clk 0:02:23.5]} 17... cxd3 {[%clk 0:01:59.6]} 18. Rxd3
{[%clk 0:02:23.6]} 18... Qf6+ {[%clk 0:02:00.1]} 19. Bf4 {[%clk 0:02:19.8]}
19... g5 {[%clk 0:01:54.3]} 20. Qa4+ {[%clk 0:02:12.9]} 20... Kf8 {[%clk
0:01:52.2]} 21. Qc4 {[%clk 0:02:04.1]} 21... Bb6 {[%clk 0:01:42.3]} 22. Qb4+
{[%clk 0:02:03.9]} 22... Ne7 {[%clk 0:01:35.8]} 23. Rf3 {[%clk 0:01:55.7]} 23...
gxf4 {[%clk 0:01:29.8]} 24. Rxf4 {[%clk 0:01:56.6]} 24... Qg5 {[%clk 0:01:29.5]}
25. Rd1 {[%clk 0:01:53.4]} 25... e5 {[%clk 0:01:12.9]} 26. Rd5 {[%clk
0:01:39.3]} 26... Bh3 {[%clk 0:01:07.2]} 27. Qd6 {[%clk 0:00:23.1]} 27... Bxg2+
{[%clk 0:00:41.8]} 28. Kxg2 {[%clk 0:00:23.2]} 28... Rd8 {[%clk 0:00:42]} 29.
Qxe5 {[%clk 0:00:20]} 29... Qxe5 {[%clk 0:00:41.9]} 30. Rxe5 {[%clk 0:00:20.9]}
30... Ng6 {[%clk 0:00:41.9]} 0-1